bitfinex/quotes_ETHUSD_20240630
["timestamp","ask_amount","ask_price","bid_price","bid_amount"]
[1719708872956,2.54831645,3390.2,3389.2,2.3626]
[1719708873132,0.04320553,3390.1,3389.5,0.855]
[1719708873349,2.3127,3390.0,3389.5,0.855]
[1719708873622,0.04313764,3389.9,3389.5,0.855]
[1719708875914,0.04313764,3389.9,3389.7,0.855]
[1719708877817,0.04313764,3389.9,3389.5,0.855]
[1719708885111,2.3826,3389.8,3389.3,3.0]
[1719708885342,2.3826,3389.8,3389.3,0.855]
[1719708885548,0.0428983,3389.7,3389.3,0.855]
[1719708885848,2.3826,3389.8,3388.9,3.0]
[1719708886022,2.3826,3389.8,3389.2,0.855]
[1719708886222,0.0428983,3389.7,3389.2,0.855]
[1719708886814,0.0428983,3389.7,3389.0,0.55]
[1719708887317,0.0428983,3389.7,3389.2,0.855]
[1719708888052,0.0428983,3389.7,3389.5,0.855]
[1719708888276,2.3826,3389.8,3389.5,0.855]
[1719708888430,0.0428983,3389.7,3389.5,0.855]
[1719708888818,2.3826,3389.8,3389.5,0.855]
[1719708889016,0.04286435,3389.6,3389.5,0.855]
[1719708889210,2.3826,3389.8,3389.5,0.855]
[1719708889432,0.04286435,3389.6,3389.2,2.3783]
[1719708889612,2.3826,3390.4,3388.9,3.28265834]
[1719708889613,2.3826,3390.4,3389.6,2.3783]
[1719708889965,2.3826,3390.4,3390.3,0.855]
[1719708893837,2.3826,3390.4,3390.1,0.855]
[1719708894382,2.62086,3390.4,3390.1,0.855]
[1719708894682,2.3826,3390.4,3390.1,0.855]
[1719708900382,0.855,3390.2,3389.7,3.0]
[1719708900582,2.3826,3390.4,3389.6,2.3783]
[1719708900583,0.855,3390.0,3389.6,2.3783]
[1719708900885,0.04163768,3389.9,3389.7,0.55]
[1719708901048,0.04163768,3389.9,3389.7,3.55]
[1719708901252,0.855,3390.1,3389.7,3.55]
[1719708901610,0.04165985,3390.0,3389.7,3.55]
[1719708902663,0.855,3390.1,3389.7,3.55]
[1719708902980,0.04165985,3390.0,3389.7,3.55]
[1719708905390,0.04165985,3390.0,3389.8,2.3371]
[1719708905694,2.4617,3390.8,3389.9,0.55]
[1719708905695,0.855,3390.5,3389.9,0.55]
[1719708905862,0.04174489,3390.4,3389.9,0.55]
[1719708906067,0.04174489,3390.4,3389.9,3.55]
[1719708906263,0.855,3390.3,3389.9,3.55]
[1719708907174,0.855,3390.6,3389.9,3.55]
[1719708907491,2.4617,3390.8,3389.9,3.55]
[1719708907492,0.855,3390.4,3389.9,3.55]
[1719708908987,3.3167,3390.4,3389.9,3.55]
[1719708909290,0.04172928,3390.3,3389.9,3.55]
[1719708916581,0.855,3390.2,3390.0,3.0]
[1719708916796,0.855,3390.2,3389.6,3.0]
[1719708916970,0.855,3390.2,3389.7,0.55]
[1719708916971,0.0416614,3390.1,3389.7,0.55]
[1719708917317,0.0416614,3390.1,3389.6,3.55]
[1719708917604,0.0416614,3390.1,3389.7,3.0]
[1719708918012,0.0416614,3390.1,3389.6,3.55]
[1719708919696,2.5185614,3390.1,3389.6,3.55]
[1719708919900,2.5185614,3390.1,3389.6,0.55]
[1719708920080,2.5185614,3390.1,3389.5,0.55]
[1719708928626,0.0416614,3390.1,3389.5,0.55]
[1719708928810,0.855,3390.2,3389.5,0.55]
[1719708929017,0.04013396,3390.0,3389.5,0.55]
[1719708929531,0.04010002,3389.9,3389.5,0.55]
[1719708929689,0.855,3390.2,3389.5,0.55]
[1719708929896,0.04016791,3390.1,3389.5,0.55]
[1719708934916,2.4934,3390.0,3389.5,0.55]
[1719708935098,0.03867019,3389.9,3389.5,0.55]
[1719708961731,3.2262,3390.4,3389.6,2.337]
[1719708961932,0.03838989,3390.3,3389.7,0.55]
[1719708962133,0.03838989,3390.3,3389.7,3.55]
[1719708962716,0.51187963,3390.3,3389.7,3.55]
[1719708963431,0.03838989,3390.3,3389.7,0.55]
[1719708963574,0.03838989,3390.3,3389.6,0.55]
[1719708965828,0.03838989,3390.3,3389.6,1.46400016]
[1719708971315,19.96838989,3390.3,3389.6,1.46400016]
[1719708975018,2.3712,3390.1,3389.6,0.55]
[1719708975396,0.03832866,3390.0,3389.3,0.55]
[1719708975997,2.4453,3389.9,3389.3,0.55]
[1719708976390,0.03826077,3389.8,3389.3,0.55]
[1719708977223,19.96826077,3389.8,3389.3,0.55]
[1719708978929,19.96826077,3389.8,3389.2,0.55]
[1719708979533,19.96826077,3389.8,3389.2,3.55]
[1719708993611,19.37995622,3389.8,3389.2,3.55]
[1719708993812,0.03601304,3389.7,3389.2,3.55]
[1719708995219,19.41596926,3389.7,3389.2,3.55]
[1719708997252,19.41596926,3389.7,3389.3,0.855]
[1719708997449,19.41596926,3389.7,3389.4,0.55]
[1719708999352,19.41596926,3389.7,3389.3,1.405]
[1719709001027,0.03601304,3389.7,3389.3,1.405]
[1719709001466,19.37995622,3389.8,3389.3,1.405]
[1719709001661,0.03598078,3389.6,3389.3,1.405]
[1719709001955,0.03601473,3389.7,3389.3,1.405]
[1719709002164,0.03594683,3389.5,3389.3,1.405]
[1719709002324,19.37995622,3389.8,3389.3,1.405]
[1719709002666,2.3338,3389.5,3389.3,0.55]
[1719709003025,0.03587349,3389.4,3389.2,0.55]
[1719709003239,0.03587349,3389.4,3389.0,0.855]
[1719709003240,0.03587349,3389.4,3389.1,1.731842]
[1719709003463,0.03587349,3389.4,3389.1,4.731842]
[1719709004957,0.03587349,3389.4,3389.1,3.0]
[1719709005133,0.03587349,3389.4,3389.0,0.855]
[1719709005338,0.03587349,3389.4,3389.0,2.036875]
[1719709005837,0.03587349,3389.4,3389.2,0.855]
[1719709009042,0.03587349,3389.4,3389.0,2.036875]
[1719709009247,0.03587349,3389.4,3389.1,0.55]
[1719709009444,0.03587349,3389.4,3389.1,3.55]
[1719709015254,0.03587349,3389.4,3389.3,0.855]
[1719709015460,17.91388931,3389.6,3389.3,5.90231991]
[1719709015653,15.25066697,3389.6,3389.5,2.9202]
[1719709015852,15.25066697,3389.6,3389.5,6.94714819]
[1719709016054,15.25066697,3389.6,3389.5,11.46045278]
[1719709016256,15.25066697,3389.6,3389.5,11.74311112]
[1719709016470,15.25066697,3389.6,3389.5,10.20270653]
[1719709017678,15.25066697,3389.6,3389.5,9.17575834]
[1719709018096,15.25066697,3389.6,3389.5,8.32075834]
[1719709018386,15.25066697,3389.6,3389.5,8.8931]
[1719709019206,7.33,3390.2,3389.5,8.8931]
[1719709019346,7.33,3390.2,3389.9,0.855]
[1719709019774,7.33,3390.2,3390.0,0.55]
[1719709021347,7.33,3390.2,3390.1,0.855]
[1719709021665,7.33,3390.2,3390.1,1.405]
[1719709023158,7.36232402,3390.2,3390.1,1.405]
[1719709025189,0.03232402,3390.2,3390.1,1.405]
[1719709025491,15.25066697,3390.4,3390.1,1.405]
[1719709025791,15.25066697,3390.4,3390.2,0.55]
[1719709026757,2.3606,3390.5,3390.2,0.55]
[1719709027510,2.3606,3390.5,3390.4,0.855]
[1719709027807,2.3606,3390.5,3390.4,1.405]
[1719709035708,2.39314834,3390.5,3390.4,1.405]
[1719709038527,2.4141,3390.4,3389.8,4.181567]
[1719709038715,2.4141,3390.4,3389.3,0.855]
[1719709038901,3.38492987,3390.5,3389.5,1.181697]
[1719709038902,2.4141,3390.2,3389.5,1.181697]
[1719709039220,0.03243493,3390.1,3389.6,0.855]
[1719709039988,0.03243493,3390.1,3389.7,0.55]
[1719709051917,0.03243493,3390.1,3389.8,0.91399725]
[1719709052112,0.03243493,3390.1,3389.9,0.55]
[1719709052311,17.61516697,3390.6,3389.9,0.55]
[1719709052547,0.03227233,3390.0,3389.9,0.55]
[1719709052758,17.61516697,3390.6,3389.9,0.55]
[1719709052926,0.03227496,3390.0,3389.9,0.55]
[1719709053133,17.61516697,3390.6,3389.9,0.55]
[1719709053450,2.3645,3390.2,3389.9,0.55]
[1719709053655,0.0323089,3390.1,3389.9,0.55]
[1719709056857,0.0323089,3390.1,3389.7,0.855]
[1719709057055,0.0323089,3390.1,3389.8,0.55]
[1719709075330,2.353,3390.0,3389.5,3.0]
[1719709075557,2.353,3389.8,3389.6,3.0]
[1719709075733,2.353,3389.8,3389.4,1.181719]
[1719709075903,0.0311434,3389.7,3389.4,1.181719]
[1719709076237,2.353,3389.8,3389.2,0.855]
[1719709076550,0.0311434,3389.7,3389.2,2.036783]
[1719709076756,0.0311434,3389.7,3389.3,0.55]
[1719709076922,0.0311434,3389.7,3389.3,3.55]
[1719709077259,0.03110944,3389.6,3389.3,3.55]
[1719709077462,2.353,3389.8,3389.3,3.55]
[1719709077867,0.0311434,3389.7,3389.3,3.55]
[1719709078555,2.353,3389.8,3389.3,3.55]
[1719709078757,0.03110944,3389.6,3389.3,3.55]
[1719709079057,0.03093891,3389.5,3389.3,3.55]
[1719709079356,2.353,3389.8,3389.3,3.55]
[1719709079525,0.03090496,3389.4,3389.3,3.55]
[1719709079935,2.353,3389.8,3389.3,3.55]
[1719709080344,0.03100682,3389.7,3389.3,3.55]
[1719709080665,2.353,3389.8,3389.3,3.55]
[1719709080974,0.02983693,3389.6,3389.3,3.55]
[1719709081254,0.02975493,3389.5,3389.3,3.55]
[1719709081461,2.353,3389.8,3389.3,3.55]
[1719709081639,0.02982283,3389.7,3389.3,3.55]
[1719709081868,2.353,3389.8,3389.4,0.855]
[1719709082081,0.02978888,3389.6,3389.5,0.55]
[1719709082379,2.353,3389.8,3389.5,0.55]
[1719709082590,0.02978888,3389.6,3389.5,0.55]
[1719709082739,2.353,3389.8,3389.5,0.55]
[1719709083286,0.02982283,3389.7,3389.5,0.55]
[1719709083653,2.353,3389.8,3389.5,0.55]
[1719709083853,0.02980261,3389.7,3389.5,0.55]
[1719709084054,2.353,3389.8,3389.5,0.55]
[1719709084285,0.02980261,3389.7,3389.5,0.55]
[1719709084447,2.353,3389.8,3389.5,0.55]
[1719709084652,0.02980261,3389.7,3389.5,0.55]
[1719709084854,2.353,3389.8,3389.5,0.55]
[1719709085095,0.02980261,3389.7,3389.5,0.55]
[1719709085389,2.353,3389.8,3389.5,0.55]
[1719709085573,0.02976866,3389.6,3389.5,0.55]
[1719709085765,2.353,3389.8,3389.5,0.55]
[1719709085960,0.02976866,3389.6,3389.5,0.55]
[1719709086590,2.353,3389.8,3389.5,0.55]
[1719709086818,0.02976866,3389.6,3389.5,0.55]
[1719709086958,2.353,3389.8,3389.5,0.55]
[1719709087151,0.02976866,3389.6,3389.5,0.55]
[1719709087359,2.353,3389.8,3389.5,0.55]
[1719709087870,0.0298215,3389.7,3389.5,0.55]
[1719709088081,2.353,3389.8,3389.5,0.55]
[1719709088267,0.02978755,3389.6,3389.5,0.55]
[1719709088470,2.353,3389.8,3389.5,0.55]
[1719709088809,0.0298215,3389.7,3389.5,0.55]
[1719709089161,2.353,3389.8,3389.5,0.55]
[1719709089362,0.02978755,3389.6,3389.5,0.55]
[1719709089593,2.353,3389.8,3389.5,0.55]
[1719709090121,0.0298215,3389.7,3389.5,0.55]
[1719709090265,2.353,3389.8,3389.5,0.55]
[1719709090619,0.02978755,3389.6,3389.5,0.55]
[1719709090774,2.353,3389.8,3389.5,0.55]
[1719709090965,0.02978755,3389.6,3389.5,0.55]
[1719709091169,2.353,3389.8,3389.5,0.55]
[1719709091370,0.02979542,3389.6,3389.5,0.55]
[1719709091904,2.353,3389.8,3389.5,0.55]
[1719709092106,0.02979542,3389.6,3389.5,0.55]
[1719709092404,2.353,3389.8,3389.4,0.55]
[1719709092600,0.02979542,3389.6,3389.4,0.55]
[1719709092788,2.3237,3389.5,3389.4,0.55]
[1719709092995,2.35344257,3389.5,3389.2,0.55]
[1719709093501,2.35344257,3389.5,3389.1,1.405]
[1719709093816,2.35344257,3389.5,3389.1,0.55]
[1719709094369,2.35344257,3389.5,3388.9,0.55]
[1719709094571,2.35344257,3389.5,3388.9,3.55]
[1719709096530,2.35344257,3389.5,3389.0,3.0]
[1719709096674,2.35344257,3389.5,3389.1,0.55]
[1719709097211,2.35344257,3389.5,3388.9,0.55]
[1719709101614,2.35344257,3389.5,3388.9,1.405]
[1719709101839,2.35344257,3389.5,3388.9,4.405]
[1719709113817,0.02974257,3389.5,3389.3,0.855]
[1719709114022,0.02974257,3389.5,3389.4,0.55]
[1719709114222,17.72136697,3389.7,3389.4,0.55]
[1719709114735,0.02959744,3389.6,3389.4,0.55]
[1719709121007,0.02959744,3389.6,3389.5,0.855]
[1719709121209,0.02959744,3389.6,3389.5,1.405]
[1719709123643,15.25066697,3389.9,3389.5,1.405]
[1719709123840,15.25066697,3389.9,3389.6,0.55]
[1719709125550,0.02983165,3389.8,3389.6,0.55]
[1719709127815,0.02983165,3389.8,3389.4,1.405]
[1719709145428,0.02983165,3389.8,3389.6,0.855]
[1719709145751,0.02983165,3389.8,3389.7,0.55]
[1719709153349,17.62606697,3390.0,3389.7,0.55]
[1719709153675,0.02913647,3389.9,3389.7,0.55]
[1719709162663,1.79465681,3389.9,3389.6,0.855]
[1719709162972,2.4362,3389.8,3389.4,3.0]
[1719709163202,2.4362,3389.8,3389.2,0.855]
[1719709163203,0.02907251,3389.7,3389.2,0.855]
[1719709164306,0.02907251,3389.7,3389.3,0.55]
[1719709164668,4.38435238,3389.8,3389.3,0.55]
[1719709164869,0.02903856,3389.6,3389.3,0.55]
[1719709165083,15.27973948,3389.7,3389.3,0.55]
[1719709165268,0.02900461,3389.5,3389.3,0.55]
[1719709165464,15.25066697,3389.7,3389.3,0.55]
[1719709165707,0.02897066,3389.4,3389.3,0.55]
[1719709165871,15.25066697,3389.7,3389.3,0.55]
[1719709166423,0.02903856,3389.6,3389.3,0.55]
[1719709168388,0.02903856,3389.6,3389.4,0.855]
[1719709168589,0.02903856,3389.6,3389.5,0.55]
[1719709178727,0.02903856,3389.6,3389.3,0.855]
[1719709178888,0.02903856,3389.6,3389.4,0.55]
[1719709183405,2.3131,3389.5,3389.4,0.55]
[1719709183739,2.3131,3389.5,3388.7,0.29391853]
[1719709183740,2.34206232,3389.5,3389.3,0.855]
[1719709183938,2.34206232,3389.5,3389.4,0.55]
[1719709187001,0.02896232,3389.5,3389.4,0.55]
[1719709187197,15.25066697,3389.7,3389.4,0.55]
[1719709187398,0.02898254,3389.5,3389.4,0.55]
[1719709187700,15.25066697,3389.7,3389.4,0.55]
[1719709187900,0.02897201,3389.5,3389.4,0.55]
[1719709188098,15.25066697,3389.7,3389.4,0.55]
[1719709188734,0.02900596,3389.6,3389.4,0.55]
[1719709193915,1.78828325,3389.6,3389.4,0.55]
[1719709194119,1.78828325,3389.6,3389.5,0.55]
[1719709194309,0.02900596,3389.6,3389.2,0.55]
[1719709199023,0.02900596,3389.6,3389.3,0.855]
[1719709199226,0.02900596,3389.6,3389.4,0.55]
[1719709203318,2.2853,3389.5,3388.9,3.0]
[1719709203647,0.85330621,3389.6,3389.4,0.855]
[1719709203648,0.02900596,3389.6,3389.4,0.855]
[1719709203851,0.02900596,3389.6,3389.5,0.55]
[1719709217662,0.02692259,3389.6,3389.5,0.55]
[1719709217862,15.25066697,3389.9,3389.5,0.55]
[1719709218061,15.25066697,3389.9,3389.6,0.855]
[1719709218277,15.25066697,3389.9,3389.7,0.55]
[1719709218492,17.50873367,3389.9,3389.7,0.55]
[1719709221426,15.25066697,3389.9,3389.7,0.55]
[1719709221770,15.25066697,3390.2,3389.7,0.55]
[1719709223383,2.3507,3390.1,3389.7,0.55]
[1719709226827,15.25066697,3390.2,3389.7,0.55]
[1719709227339,16.64128974,3390.2,3389.7,0.55]
[1719709227718,1.39062277,3390.2,3389.7,0.55]
[1719709230802,0.02709889,3390.1,3389.8,0.855]
[1719709231143,0.02709889,3390.1,3389.9,0.55]
[1719709231702,17.58206697,3390.3,3389.9,0.55]
[1719709231903,0.0270689,3390.0,3389.9,0.55]
[1719709232442,17.58206697,3390.3,3389.9,0.55]
[1719709232638,0.0270689,3390.0,3389.9,0.55]
[1719709232836,17.58206697,3390.3,3389.9,0.55]
[1719709233018,0.0270689,3390.0,3389.9,0.55]
[1719709233219,17.58206697,3390.3,3389.9,0.55]
[1719709233453,0.0270689,3390.0,3389.9,0.55]
[1719709233620,17.58206697,3390.3,3389.9,0.55]
[1719709233621,15.25066697,3390.1,3389.9,0.55]
[1719709233814,0.0270689,3390.0,3389.9,0.55]
[1719709235756,0.0270689,3390.0,3389.7,0.55]
[1719709237014,2.4434,3389.9,3389.7,0.55]
[1719709237219,0.02700101,3389.8,3389.6,0.55]
[1719709237559,0.02700101,3389.8,3389.5,0.55]
[1719709267189,0.02700101,3389.8,3389.5,1.405]
[1719709269089,0.02700101,3389.8,3389.5,1.535]
[1719709273195,2.44040101,3389.9,3389.5,1.535]
[1719709273694,4.20950781,3389.9,3389.5,0.68]
[1719709273908,1.7691068,3389.9,3389.5,0.68]
[1719709275456,15.25066697,3390.2,3389.5,0.68]
[1719709276160,2.3264,3390.1,3389.5,0.68]
[1719709284445,3.1814,3390.1,3389.5,0.13]
[1719709284770,15.25066697,3390.2,3389.5,0.13]
[1719709284771,3.2693,3389.6,3389.5,0.13]
[1719709285096,2.4143,3389.6,3389.5,0.13]
[1719709286732,2.4143,3389.9,3389.5,0.13]
[1719709287042,4.6723667,3390.1,3389.5,0.985]
[1719709287400,2.4143,3390.1,3389.5,0.985]
[1719709287599,2.4143,3390.1,3389.5,0.13]
[1719709299361,15.25066697,3390.2,3389.5,0.985]
[1719709299872,15.25066697,3390.2,3389.6,2.4366]
[1719709300050,15.25066697,3390.2,3389.6,5.4366]
[1719709301460,17.83298367,3390.2,3389.6,5.4366]
[1719709303637,15.25066697,3390.2,3389.7,0.55]
[1719709303889,15.25066697,3390.2,3389.7,3.55]
[1719709305239,15.25066697,3390.3,3389.7,3.55]
[1719709305599,22.58066697,3390.4,3389.7,3.55]
[1719709305735,7.33,3390.4,3389.8,3.2916]
[1719709306082,7.33,3390.4,3389.9,3.0]
[1719709311222,15.25066697,3390.6,3389.9,3.0]
[1719709316128,17.56955077,3390.6,3389.9,3.0]
[1719709317204,2.3188838,3390.6,3389.9,3.0]
[1719709319396,24.96816697,3390.7,3390.5,0.855]
[1719709319397,22.58066697,3390.7,3390.5,0.855]
[1719709319598,7.33,3390.7,3390.6,2.8408]
[1719709320088,6.95179469,3390.7,3390.6,5.8408]
[1719709320432,6.95179469,3390.7,3390.6,7.90533]
[1719709320723,6.95179469,3390.7,3390.6,8.76033]
[1719709321424,6.95179469,3390.7,3390.6,6.6958]
[1719709324332,6.95179469,3390.7,3390.6,5.8408]
[1719709324501,6.95179469,3390.7,3390.6,6.6958]
[1719709325020,6.95179469,3390.7,3390.6,6.6658]
[1719709328830,6.95179469,3390.7,3390.6,6.6658]
[1719709329944,6.95179469,3390.7,3390.6,5.8108]
[1719709330168,6.95179469,3390.7,3390.6,6.6658]
[1719709331248,6.95179469,3390.7,3390.6,3.0]
[1719709331424,6.95179469,3390.7,3390.6,3.855]
[1719709331828,6.95179469,3390.7,3390.6,0.855]
[1719709332040,6.95179469,3390.7,3390.6,2.036319]
[1719709332240,6.95179469,3390.7,3390.6,0.855]
[1719709332828,6.95179469,3390.7,3390.6,1.405]
[1719709335718,6.95179469,3390.7,3390.5,3.0]
[1719709335912,6.95179469,3390.7,3390.4,0.855]
[1719709337149,6.95179469,3390.7,3390.5,0.55]
[1719709338823,6.95179469,3390.7,3390.6,0.855]
[1719709339136,6.95179469,3390.7,3390.6,1.405]
[1719709339330,6.95179469,3390.7,3390.6,4.405]
[1719709340831,15.25066697,3391.1,3390.6,4.405]
[1719709341020,15.25066697,3391.1,3390.9,0.855]
[1719709347058,15.25066697,3391.2,3390.9,0.855]
[1719709348333,15.25066697,3391.2,3390.7,0.855]
[1719709348655,15.25066697,3391.2,3390.8,0.55]
[1719709352863,2.444,3391.3,3390.8,0.55]
[1719709358698,4.91159593,3391.3,3390.9,0.55]
[1719709358838,4.91159593,3391.3,3390.7,1.405]
[1719709359039,2.444,3391.3,3390.7,1.405]
[1719709360065,2.444,3391.3,3390.7,0.55]
[1719709360266,2.444,3391.3,3390.6,0.55]
[1719709376314,2.444,3391.3,3390.5,0.55]
[1719709376519,2.3958,3391.1,3389.5,1.54041498]
[1719709376697,2.3958,3390.5,3389.6,0.855]
[1719709376891,2.3958,3390.5,3389.6,2.036698]
[1719709377324,2.3958,3390.5,3389.6,0.855]
[1719709379230,2.3958,3390.5,3389.7,0.55]
[1719709380900,0.855,3390.4,3389.7,0.55]
[1719709381191,0.32508,3390.3,3389.6,0.55]
[1719709383689,2.2917,3390.2,3389.5,3.0]
[1719709383890,2.2917,3390.2,3389.1,2.4149]
[1719709383891,7.80679469,3390.2,3389.1,2.4149]
[1719709384128,2.2917,3390.1,3389.1,3.2699]
[1719709384329,4.59744617,3390.1,3389.1,3.2699]
[1719709384812,2.2917,3390.0,3388.9,1.18193]
[1719709385007,0.855,3390.0,3388.9,1.18193]
[1719709385336,3.1467,3389.9,3388.9,0.855]
[1719709385487,3.1467,3389.9,3389.0,0.55]
[1719709387227,2.2917,3389.9,3389.0,0.55]
[1719709388639,0.855,3389.8,3389.0,0.55]
[1719709388845,0.33058208,3389.7,3389.0,0.55]
[1719709389050,2.2917,3389.5,3387.9,2.4149]
[1719709389210,6.95179469,3389.3,3388.9,0.55]
[1719709389416,15.59839518,3389.4,3388.9,0.55]
[1719709389762,15.59839518,3389.4,3388.6,0.55]
[1719709390849,1.87450952,3389.3,3388.2,2.4149]
[1719709391015,2.2917,3389.2,3388.4,0.855]
[1719709392103,2.2917,3389.2,3388.5,0.55]
[1719709394013,4.35366047,3389.2,3388.5,0.55]
[1719709394606,19.60432744,3389.2,3388.5,0.55]
[1719709394815,17.54236697,3389.2,3388.5,0.55]
[1719709396411,17.54236697,3389.2,3388.4,1.405]
[1719709397240,17.54236697,3389.2,3388.6,0.855]
[1719709397514,15.25066697,3389.2,3388.6,0.855]
[1719709397722,15.25066697,3389.2,3388.8,0.855]
[1719709398118,15.25066697,3389.2,3388.9,0.55]
[1719709398321,15.25066697,3389.4,3388.9,0.55]
[1719709408334,15.89809543,3389.4,3388.9,0.55]
[1719709408780,15.89809543,3389.4,3388.7,0.55]
[1719709416455,2.4433,3389.3,3388.6,3.0]
[1719709416651,2.14805954,3389.2,3388.4,0.855]
[1719709418285,2.14805954,3389.2,3388.5,0.55]
[1719709418759,2.14805954,3389.2,3388.4,1.405]
[1719709421481,17.39872651,3389.2,3388.4,1.405]
[1719709424056,0.855,3388.7,3387.9,2.2962]
[1719709424283,2.3949,3388.6,3387.9,2.2962]
[1719709424490,4.94013617,3388.6,3387.9,2.2962]
[1719709424782,4.94013617,3388.6,3387.9,3.1512]
[1719709425571,4.94013617,3388.6,3388.0,3.0]
[1719709427352,20.19080314,3388.6,3388.0,3.0]
[1719709433294,15.25066697,3388.5,3388.0,3.0]
[1719709435275,15.25066697,3388.5,3387.9,0.855]
[1719709435489,15.25066697,3388.5,3388.0,0.55]
[1719709436198,15.25066697,3388.5,3388.1,0.855]
[1719709436377,15.25066697,3388.5,3388.2,2.9503]
[1719709436705,15.25066697,3388.5,3388.3,3.0]
[1719709437986,15.25066697,3388.5,3388.2,0.55]
[1719709439293,15.25066697,3388.4,3388.2,0.55]
[1719709440714,15.25066697,3388.4,3388.3,0.855]
[1719709442001,15.25066697,3388.4,3388.3,1.405]
[1719709443772,15.25066697,3388.4,3388.3,0.55]
[1719709443973,15.25066697,3388.4,3388.2,1.405]
[1719709445274,15.25066697,3388.3,3388.2,1.405]
[1719709451211,15.25066697,3388.8,3388.2,1.405]
[1719709452414,17.92997769,3388.8,3388.2,1.405]
[1719709455343,17.92997769,3388.8,3388.4,0.855]
[1719709455344,15.25066697,3388.8,3388.4,0.855]
[1719709455503,15.25066697,3388.8,3388.6,0.855]
[1719709455711,15.25066697,3388.7,3388.6,0.855]
[1719709456435,15.25066697,3388.7,3388.5,3.0]
[1719709457988,15.25066697,3388.7,3388.4,3.2553]
[1719709458188,15.25066697,3388.7,3388.5,3.55]
[1719709460240,15.25066697,3388.6,3388.5,3.55]
[1719709461639,15.25066697,3388.6,3388.5,0.55]
[1719709461840,15.25066697,3388.6,3388.4,0.55]
[1719709466144,15.25066697,3388.5,3388.4,0.55]
[1719709477865,15.25066697,3388.5,3388.2,0.55]
[1719709478145,15.25066697,3388.4,3388.2,0.55]
[1719709484058,15.25066697,3388.5,3388.2,0.55]
[1719709488062,15.25066697,3388.5,3388.0,3.0]
[1719709488362,1.7745167,3388.4,3388.0,0.855]
[1719709488532,1.7745167,3388.4,3388.1,3.0]
[1719709488721,1.7745167,3388.4,3388.0,0.855]
[1719709488722,15.25066697,3388.5,3388.0,0.855]
[1719709489980,15.25066697,3388.4,3388.0,0.855]
[1719709495883,15.25066697,3388.5,3388.0,0.855]
[1719709501960,15.25066697,3388.4,3388.0,0.855]
[1719709503360,17.73476697,3388.4,3388.1,0.55]
[1719709503560,17.73476697,3388.4,3388.0,0.55]
[1719709507801,15.25066697,3388.3,3388.0,0.55]
[1719709512681,15.25066697,3388.3,3387.7,3.0]
[1719709512682,17.02414367,3388.3,3387.7,3.0]
[1719709513003,2.4841,3388.1,3387.3,0.855]
[1719709513236,2.4841,3388.1,3386.8,2.4767]
[1719709513237,2.4841,3388.0,3386.8,2.4767]
[1719709513439,24.68656166,3388.0,3387.4,0.855]
[1719709514165,24.68656166,3388.0,3387.5,0.55]
[1719709514369,15.25066697,3387.9,3387.5,0.55]
[1719709515118,15.25066697,3387.9,3387.6,0.855]
[1719709515326,15.25066697,3387.9,3387.7,0.55]
[1719709519671,15.25066697,3387.8,3387.7,0.55]
[1719709525705,15.25066697,3387.8,3387.7,2.832]
[1719709525884,15.25066697,3387.8,3387.7,5.832]
[1719709531823,15.32457295,3387.8,3387.7,4.405]
[1719709532799,15.32457295,3387.8,3387.7,1.405]
[1719709537592,15.1106992,3387.8,3387.7,1.405]
[1719709537800,14.756618,3387.8,3387.7,1.405]
[1719709538111,0.855,3388.9,3387.7,1.405]
[1719709538112,14.68271202,3388.8,3388.0,2.06607]
[1719709538323,9.25859469,3389.2,3388.7,0.855]
[1719709538552,2.3068,3389.2,3388.7,0.855]
[1719709543138,2.3068,3389.2,3388.2,3.0]
[1719709543315,2.3068,3389.2,3388.8,0.855]
[1719709543847,16.98951202,3389.2,3388.8,0.855]
[1719709544160,1.6989512,3389.1,3388.8,0.855]
[1719709545653,0.06645235,3389.0,3388.8,0.855]
[1719709549677,14.74916437,3389.0,3388.8,0.855]
[1719709552086,14.74916437,3389.0,3388.9,0.55]
[1719709555515,0.06645235,3389.0,3388.9,0.55]
[1719709555718,14.68271202,3389.2,3388.9,0.55]
[1719709555899,14.68271202,3389.2,3389.0,0.855]
[1719709556092,14.68271202,3389.2,3389.1,0.55]
[1719709557286,17.07515269,3389.2,3388.9,0.55]
[1719709557492,14.68271202,3389.2,3388.9,0.55]
[1719709558097,14.68271202,3389.2,3388.8,1.405]
[1719709560913,0.0647489,3389.1,3388.8,1.405]
[1719709561115,0.0647489,3389.1,3388.8,0.55]
[1719709561310,0.0647489,3389.1,3388.8,1.405]
[1719709561523,14.74746092,3389.1,3388.8,1.405]
[1719709561687,14.74746092,3389.1,3388.8,0.55]
[1719709561894,14.74746092,3389.1,3388.8,1.405]
[1719709562609,14.74746092,3389.1,3388.8,3.55]
[1719709562809,14.74746092,3389.1,3388.8,1.405]
[1719709565730,14.74746092,3389.1,3388.8,0.55]
[1719709565944,3.05965458,3389.0,3388.5,0.55]
[1719709566111,3.12435658,3389.0,3388.6,0.855]
[1719709566314,3.12435658,3389.0,3388.7,0.55]
[1719709566522,2.3455,3388.8,3388.4,3.0]